Department family,Entity,Date,Expense type,Expense area,Supplier,Transaction number,Amount
Department of Health,Leicestershire Partnership NHS Trust,01/07/19,Crs_NHS_LT1y -Resus Inventory Supplied.,Balance Sheet Collection,SUPPLY CHAIN CO LTD,1010067399,35840.66
Department of Health,Leicestershire Partnership NHS Trust,01/07/19,Rent,County Hall,LEIC COUNTY COUNCIL,6281602,34488.50
Department of Health,Leicestershire Partnership NHS Trust,02/07/19,Occupational Health,HR Operations,UHL NHS TRUST (RWE),L0229015,26622.00
Department of Health,Leicestershire Partnership NHS Trust,02/07/19,WIP Project Not in BS - Information Technology,Work in Progress,C HENRY & SONS,10421,27505.20
Department of Health,Leicestershire Partnership NHS Trust,02/07/19,Internal Printing (machines and ink),Estates & Facilities Central,LEXMARK INTERNATIONAL LTD,900650006331,38748.12
Department of Health,Leicestershire Partnership NHS Trust,02/07/19,NURSE - BAND 5 - AGENCY,Acacia (Willows),HCL NURSING,HNSI0000056,329.81
Department of Health,Leicestershire Partnership NHS Trust,02/07/19,Nurse - Band 6 -Agency,Adult City East CMHT - Merlyn Vaz,HCL NURSING,HNSI0000056,1325.57
Department of Health,Leicestershire Partnership NHS Trust,02/07/19,Nurse - Band 6 -Agency,Adult County Charnwood CMHT - Loughborough Base,HCL NURSING,HNSI0000056,1283.85
Department of Health,Leicestershire Partnership NHS Trust,02/07/19,Nurse - Band 6 -Agency,Adult County North West Leicestershire CMHT,HCL NURSING,HNSI0000056,1069.88
Department of Health,Leicestershire Partnership NHS Trust,02/07/19,NURSE - BAND 2 - AGENCY,Agnes Unit Management,HCL NURSING,HNSI0000056,296.39
Department of Health,Leicestershire Partnership NHS Trust,02/07/19,NURSE - BAND 5 - AGENCY,Agnes Unit Management,HCL NURSING,HNSI0000056,276.65
Department of Health,Leicestershire Partnership NHS Trust,02/07/19,NURSE - BAND 5 - AGENCY,Ashby Ward (Bradgate Unit),HCL NURSING,HNSI0000056,259.30
Department of Health,Leicestershire Partnership NHS Trust,02/07/19,NURSE - BAND 2 - AGENCY,Aston Ward (Bradgate Unit),HCL NURSING,HNSI0000056,788.45
Department of Health,Leicestershire Partnership NHS Trust,02/07/19,NURSE - BAND 5 - AGENCY,Aston Ward (Bradgate Unit),HCL NURSING,HNSI0000056,329.81
Department of Health,Leicestershire Partnership NHS Trust,02/07/19,NURSE - BAND 2 - AGENCY,Beaumont Ward - Bradgate Unit,HCL NURSING,HNSI0000056,218.93
Department of Health,Leicestershire Partnership NHS Trust,02/07/19,NURSE - BAND 5 - AGENCY,Beaumont Ward - Bradgate Unit,HCL NURSING,HNSI0000056,370.38
Department of Health,Leicestershire Partnership NHS Trust,02/07/19,NURSE - BAND 2 - AGENCY,Belvoir Psychiatric Intensive Care Unit,HCL NURSING,HNSI0000056,2086.29
Department of Health,Leicestershire Partnership NHS Trust,02/07/19,NURSE - BAND 5 - AGENCY,Belvoir Psychiatric Intensive Care Unit,HCL NURSING,HNSI0000056,756.51
Department of Health,Leicestershire Partnership NHS Trust,02/07/19,Nurse - Band 6 -Agency,Crisis Resolution,HCL NURSING,HNSI0000056,4131.15
Department of Health,Leicestershire Partnership NHS Trust,02/07/19,NURSE - BAND 2 - AGENCY,Griffin Ward (HPC),HCL NURSING,HNSI0000056,377.83
Department of Health,Leicestershire Partnership NHS Trust,02/07/19,NURSE - BAND 5 - AGENCY,Griffin Ward (HPC),HCL NURSING,HNSI0000056,3982.12
Department of Health,Leicestershire Partnership NHS Trust,02/07/19,NURSE - BAND 2 - AGENCY,Heather Ward,HCL NURSING,HNSI0000056,211.12
Department of Health,Leicestershire Partnership NHS Trust,02/07/19,NURSE - BAND 5 - AGENCY,Heather Ward,HCL NURSING,HNSI0000056,710.33
Department of Health,Leicestershire Partnership NHS Trust,02/07/19,Nurse - Band 6 -Agency,Leicestershire Psych-oncology Service,HCL NURSING,HNSI0000056,427.95
Department of Health,Leicestershire Partnership NHS Trust,02/07/19,Nurse - Band 6 -Agency,Mental Health Triage Team,HCL NURSING,HNSI0000056,4622.05
Department of Health,Leicestershire Partnership NHS Trust,02/07/19,NURSE - BAND 2 - AGENCY,Mill Lodge,HCL NURSING,HNSI0000056,893.68
Department of Health,Leicestershire Partnership NHS Trust,02/07/19,NURSE - BAND 2 - AGENCY,Phoenix Ward (HPC),HCL NURSING,HNSI0000056,277.60
Department of Health,Leicestershire Partnership NHS Trust,02/07/19,NURSE - BAND 5 - AGENCY,Stewart House,HCL NURSING,HNSI0000056,579.23
Department of Health,Leicestershire Partnership NHS Trust,02/07/19,NURSE - BAND 2 - AGENCY,Thornton Ward - Bradgate Unit,HCL NURSING,HNSI0000056,1229.98
Department of Health,Leicestershire Partnership NHS Trust,02/07/19,NURSE - BAND 2 - AGENCY,Watermead Ward (Bradgate Unit),HCL NURSING,HNSI0000056,378.20
Department of Health,Leicestershire Partnership NHS Trust,02/07/19,NURSE - BAND 5 - AGENCY,Watermead Ward (Bradgate Unit),HCL NURSING,HNSI0000056,700.19
Department of Health,Leicestershire Partnership NHS Trust,04/07/19,External Data Processing / Storage,Records & information Governance,C & V DATA MANAGEMENT SRV LTD,0068505,28774.28
Department of Health,Leicestershire Partnership NHS Trust,04/07/19,Rent,"St Peters Health Center (Part 1st and 2nd floors) (P66, LPT)",LEICESTER LIFT CO,LEP1/S0321,26775.80
Department of Health,Leicestershire Partnership NHS Trust,05/07/19,NURSE - BAND 2 - AGENCY,Beechwood Ward,HCL NURSING,HNSI0000049,423.87
Department of Health,Leicestershire Partnership NHS Trust,05/07/19,NURSE - BAND 5 - AGENCY,Beechwood Ward,HCL NURSING,HNSI0000049,329.73
Department of Health,Leicestershire Partnership NHS Trust,05/07/19,NURSE - BAND 5 - AGENCY,City ICS,HCL NURSING,HNSI0000049,548.42
Department of Health,Leicestershire Partnership NHS Trust,05/07/19,NURSE - BAND 5 - AGENCY,City Planned Care - East,HCL NURSING,HNSI0000049,18508.95
Department of Health,Leicestershire Partnership NHS Trust,05/07/19,NURSE - BAND 5 - AGENCY,City Planned Care - West,HCL NURSING,HNSI0000049,13369.77
Department of Health,Leicestershire Partnership NHS Trust,05/07/19,NURSE - BAND 2 - AGENCY,Clarendon Ward,HCL NURSING,HNSI0000049,211.93
Department of Health,Leicestershire Partnership NHS Trust,05/07/19,NURSE - BAND 5 - AGENCY,Clarendon Ward,HCL NURSING,HNSI0000049,1379.48
Department of Health,Leicestershire Partnership NHS Trust,05/07/19,NURSE - BAND 2 - AGENCY,Coalville Snibston Ward,HCL NURSING,HNSI0000049,214.56
Department of Health,Leicestershire Partnership NHS Trust,05/07/19,NURSE - BAND 2 - AGENCY,Coalville Ward 2,HCL NURSING,HNSI0000049,501.91
Department of Health,Leicestershire Partnership NHS Trust,05/07/19,NURSE - BAND 5 - AGENCY,Coalville Ward 2,HCL NURSING,HNSI0000049,220.93
Department of Health,Leicestershire Partnership NHS Trust,05/07/19,NURSE - BAND 2 - AGENCY,Coleman Ward,HCL NURSING,HNSI0000049,764.90
Department of Health,Leicestershire Partnership NHS Trust,05/07/19,NURSE - BAND 5 - AGENCY,Dalgliesh Ward,HCL NURSING,HNSI0000049,419.12
Department of Health,Leicestershire Partnership NHS Trust,05/07/19,NURSE - BAND 5 - AGENCY,"East Planned Care - Oadby,Wigston & Harborough",HCL NURSING,HNSI0000049,17.43
Department of Health,Leicestershire Partnership NHS Trust,05/07/19,NURSE - BAND 5 - AGENCY,Evening Service,HCL NURSING,HNSI0000049,293.69
Department of Health,Leicestershire Partnership NHS Trust,05/07/19,NURSE - BAND 5 - AGENCY,Fielding Palmer Nursing,HCL NURSING,HNSI0000049,846.74
Department of Health,Leicestershire Partnership NHS Trust,05/07/19,NURSE - BAND 2 - AGENCY,Gwendolen Ward,HCL NURSING,HNSI0000049,198.09
Department of Health,Leicestershire Partnership NHS Trust,05/07/19,NURSE - BAND 2 - AGENCY,H&B Comm Hosp East Ward,HCL NURSING,HNSI0000049,805.82
Department of Health,Leicestershire Partnership NHS Trust,05/07/19,NURSE - BAND 5 - AGENCY,H&B Comm Hosp East Ward,HCL NURSING,HNSI0000049,734.10
Department of Health,Leicestershire Partnership NHS Trust,05/07/19,NURSE - BAND 2 - AGENCY,H&B Comm Hosp North Ward,HCL NURSING,HNSI0000049,1419.95
Department of Health,Leicestershire Partnership NHS Trust,05/07/19,NURSE - BAND 5 - AGENCY,H&B Comm Hosp North Ward,HCL NURSING,HNSI0000049,338.31
Department of Health,Leicestershire Partnership NHS Trust,05/07/19,NURSE - BAND 5 - AGENCY,Lough Swithland Ward,HCL NURSING,HNSI0000049,0.62
Department of Health,Leicestershire Partnership NHS Trust,05/07/19,Nurse - Band 6 -Agency,MHSOP Integrated Care Team,HCL NURSING,HNSI0000049,1883.63
Department of Health,Leicestershire Partnership NHS Trust,05/07/19,NURSE - BAND 5 - AGENCY,North West ICS,HCL NURSING,HNSI0000049,628.17
Department of Health,Leicestershire Partnership NHS Trust,05/07/19,NURSE - BAND 2 - AGENCY,Rutland Ward Nursing,HCL NURSING,HNSI0000049,168.41
Department of Health,Leicestershire Partnership NHS Trust,05/07/19,NURSE - BAND 5 - AGENCY,South East ICS,HCL NURSING,HNSI0000049,5121.34
Department of Health,Leicestershire Partnership NHS Trust,05/07/19,NURSE - BAND 2 - AGENCY,St Lukes Stroke Ward,HCL NURSING,HNSI0000049,777.56
Department of Health,Leicestershire Partnership NHS Trust,05/07/19,NURSE - BAND 5 - AGENCY,St Lukes Stroke Ward,HCL NURSING,HNSI0000049,392.89
Department of Health,Leicestershire Partnership NHS Trust,05/07/19,NURSE - BAND 5 - AGENCY,St Lukes Ward 3,HCL NURSING,HNSI0000049,1891.92
Department of Health,Leicestershire Partnership NHS Trust,05/07/19,NURSE - BAND 2 - AGENCY,Welford Ward,HCL NURSING,HNSI0000049,194.67
Department of Health,Leicestershire Partnership NHS Trust,05/07/19,NURSE - BAND 5 - AGENCY,Welford Ward,HCL NURSING,HNSI0000049,628.82
Department of Health,Leicestershire Partnership NHS Trust,05/07/19,NURSE - BAND 5 - AGENCY,West Planned Care  - Charnwood Hub,HCL NURSING,HNSI0000049,224.79
Department of Health,Leicestershire Partnership NHS Trust,05/07/19,NURSE - BAND 5 - AGENCY,Beechwood Ward,HCL NURSING,HNSI0000058,772.13
Department of Health,Leicestershire Partnership NHS Trust,05/07/19,NURSE - BAND 5 - AGENCY,City ICS,HCL NURSING,HNSI0000058,2560.77
Department of Health,Leicestershire Partnership NHS Trust,05/07/19,NURSE - BAND 5 - AGENCY,City Planned Care - East,HCL NURSING,HNSI0000058,18582.20
Department of Health,Leicestershire Partnership NHS Trust,05/07/19,NURSE - BAND 5 - AGENCY,City Planned Care - West,HCL NURSING,HNSI0000058,10739.34
Department of Health,Leicestershire Partnership NHS Trust,05/07/19,Nurse - Band 6 -Agency,City West CMHT MHSOP,HCL NURSING,HNSI0000058,3209.63
Department of Health,Leicestershire Partnership NHS Trust,05/07/19,NURSE - BAND 2 - AGENCY,Clarendon Ward,HCL NURSING,HNSI0000058,647.46
Department of Health,Leicestershire Partnership NHS Trust,05/07/19,NURSE - BAND 5 - AGENCY,Clarendon Ward,HCL NURSING,HNSI0000058,1708.05
Department of Health,Leicestershire Partnership NHS Trust,05/07/19,NURSE - BAND 2 - AGENCY,Coalville Snibston Ward,HCL NURSING,HNSI0000058,2204.06
Department of Health,Leicestershire Partnership NHS Trust,05/07/19,NURSE - BAND 5 - AGENCY,Coalville Snibston Ward,HCL NURSING,HNSI0000058,211.93
Department of Health,Leicestershire Partnership NHS Trust,05/07/19,NURSE - BAND 2 - AGENCY,Coalville Ward 2,HCL NURSING,HNSI0000058,913.23
Department of Health,Leicestershire Partnership NHS Trust,05/07/19,NURSE - BAND 2 - AGENCY,Coleman Ward,HCL NURSING,HNSI0000058,144.97
Department of Health,Leicestershire Partnership NHS Trust,05/07/19,NURSE - BAND 5 - AGENCY,Dalgliesh Ward,HCL NURSING,HNSI0000058,1052.90
Department of Health,Leicestershire Partnership NHS Trust,05/07/19,NURSE - BAND 5 - AGENCY,"East Planned Care - Oadby,Wigston & Harborough",HCL NURSING,HNSI0000058,278.24
Department of Health,Leicestershire Partnership NHS Trust,05/07/19,NURSE - BAND 5 - AGENCY,Evening Service,HCL NURSING,HNSI0000058,183.80
Department of Health,Leicestershire Partnership NHS Trust,05/07/19,NURSE - BAND 5 - AGENCY,Fielding Palmer Nursing,HCL NURSING,HNSI0000058,859.63
Department of Health,Leicestershire Partnership NHS Trust,05/07/19,NURSE - BAND 2 - AGENCY,Gwendolen Ward,HCL NURSING,HNSI0000058,380.10
Department of Health,Leicestershire Partnership NHS Trust,05/07/19,NURSE - BAND 5 - AGENCY,Gwendolen Ward,HCL NURSING,HNSI0000058,605.16
Department of Health,Leicestershire Partnership NHS Trust,05/07/19,NURSE - BAND 2 - AGENCY,H&B Comm Hosp East Ward,HCL NURSING,HNSI0000058,317.97
Department of Health,Leicestershire Partnership NHS Trust,05/07/19,NURSE - BAND 5 - AGENCY,H&B Comm Hosp East Ward,HCL NURSING,HNSI0000058,2284.63
Department of Health,Leicestershire Partnership NHS Trust,05/07/19,NURSE - BAND 2 - AGENCY,H&B Comm Hosp North Ward,HCL NURSING,HNSI0000058,493.90
Department of Health,Leicestershire Partnership NHS Trust,05/07/19,NURSE - BAND 5 - AGENCY,H&B Comm Hosp North Ward,HCL NURSING,HNSI0000058,772.13
Department of Health,Leicestershire Partnership NHS Trust,05/07/19,NURSE - BAND 5 - AGENCY,Lough Swithland Ward,HCL NURSING,HNSI0000058,805.19
Department of Health,Leicestershire Partnership NHS Trust,05/07/19,NURSE - BAND 5 - AGENCY,North West ICS,HCL NURSING,HNSI0000058,248.52
Department of Health,Leicestershire Partnership NHS Trust,05/07/19,NURSE - BAND 5 - AGENCY,Rutland Ward Nursing,HCL NURSING,HNSI0000058,337.92
Department of Health,Leicestershire Partnership NHS Trust,05/07/19,NURSE - BAND 5 - AGENCY,South East ICS,HCL NURSING,HNSI0000058,2458.59
Department of Health,Leicestershire Partnership NHS Trust,05/07/19,NURSE - BAND 2 - AGENCY,St Lukes Stroke Ward,HCL NURSING,HNSI0000058,968.50
Department of Health,Leicestershire Partnership NHS Trust,05/07/19,NURSE - BAND 5 - AGENCY,St Lukes Ward 3,HCL NURSING,HNSI0000058,2538.50
Department of Health,Leicestershire Partnership NHS Trust,05/07/19,NURSE - BAND 5 - AGENCY,Welford Ward,HCL NURSING,HNSI0000058,302.58
Department of Health,Leicestershire Partnership NHS Trust,05/07/19,WIP Project Not in BS - Information Technology,Work in Progress,DELL COMPUTERS,7402538417,53527.20
Department of Health,Leicestershire Partnership NHS Trust,09/07/19,NURSE - BAND 2 - AGENCY,Beechwood Ward,HCL NURSING,HNSI0000062,340.86
Department of Health,Leicestershire Partnership NHS Trust,09/07/19,NURSE - BAND 5 - AGENCY,Beechwood Ward,HCL NURSING,HNSI0000062,398.20
Department of Health,Leicestershire Partnership NHS Trust,09/07/19,NURSE - BAND 5 - AGENCY,City ICS,HCL NURSING,HNSI0000062,1400.64
Department of Health,Leicestershire Partnership NHS Trust,09/07/19,NURSE - BAND 5 - AGENCY,City Planned Care - East,HCL NURSING,HNSI0000062,14715.38
Department of Health,Leicestershire Partnership NHS Trust,09/07/19,NURSE - BAND 5 - AGENCY,City Planned Care - West,HCL NURSING,HNSI0000062,14690.20
Department of Health,Leicestershire Partnership NHS Trust,09/07/19,NURSE - BAND 2 - AGENCY,Clarendon Ward,HCL NURSING,HNSI0000062,168.41
Department of Health,Leicestershire Partnership NHS Trust,09/07/19,NURSE - BAND 2 - AGENCY,Coalville Snibston Ward,HCL NURSING,HNSI0000062,1043.30
Department of Health,Leicestershire Partnership NHS Trust,09/07/19,NURSE - BAND 2 - AGENCY,Coalville Ward 2,HCL NURSING,HNSI0000062,681.45
Department of Health,Leicestershire Partnership NHS Trust,09/07/19,NURSE - BAND 5 - AGENCY,Coalville Ward 2,HCL NURSING,HNSI0000062,936.75
Department of Health,Leicestershire Partnership NHS Trust,09/07/19,NURSE - BAND 5 - AGENCY,Dalgliesh Ward,HCL NURSING,HNSI0000062,1607.18
Department of Health,Leicestershire Partnership NHS Trust,09/07/19,NURSE - BAND 5 - AGENCY,"East Planned Care - Oadby,Wigston & Harborough",HCL NURSING,HNSI0000062,208.57
Department of Health,Leicestershire Partnership NHS Trust,09/07/19,NURSE - BAND 5 - AGENCY,Evening Service,HCL NURSING,HNSI0000062,291.44
Department of Health,Leicestershire Partnership NHS Trust,09/07/19,NURSE - BAND 5 - AGENCY,Fielding Palmer Nursing,HCL NURSING,HNSI0000062,1290.47
Department of Health,Leicestershire Partnership NHS Trust,09/07/19,NURSE - BAND 2 - AGENCY,Gwendolen Ward,HCL NURSING,HNSI0000062,380.10
Department of Health,Leicestershire Partnership NHS Trust,09/07/19,NURSE - BAND 2 - AGENCY,H&B Comm Hosp East Ward,HCL NURSING,HNSI0000062,1010.82
Department of Health,Leicestershire Partnership NHS Trust,09/07/19,NURSE - BAND 5 - AGENCY,H&B Comm Hosp East Ward,HCL NURSING,HNSI0000062,2128.63
Department of Health,Leicestershire Partnership NHS Trust,09/07/19,NURSE - BAND 2 - AGENCY,H&B Comm Hosp North Ward,HCL NURSING,HNSI0000062,755.49
Department of Health,Leicestershire Partnership NHS Trust,09/07/19,NURSE - BAND 5 - AGENCY,H&B Comm Hosp North Ward,HCL NURSING,HNSI0000062,386.06
Department of Health,Leicestershire Partnership NHS Trust,09/07/19,NURSE - BAND 5 - AGENCY,Kirby Ward,HCL NURSING,HNSI0000062,312.72
Department of Health,Leicestershire Partnership NHS Trust,09/07/19,NURSE - BAND 5 - AGENCY,Lough Swithland Ward,HCL NURSING,HNSI0000062,514.90
Department of Health,Leicestershire Partnership NHS Trust,09/07/19,Nurse - Band 6 -Agency,MHSOP Integrated Care Team,HCL NURSING,HNSI0000062,836.93
Department of Health,Leicestershire Partnership NHS Trust,09/07/19,NURSE - BAND 5 - AGENCY,North West ICS,HCL NURSING,HNSI0000062,1487.01
Department of Health,Leicestershire Partnership NHS Trust,09/07/19,NURSE - BAND 5 - AGENCY,South East ICS,HCL NURSING,HNSI0000062,4370.12
Department of Health,Leicestershire Partnership NHS Trust,09/07/19,NURSE - BAND 2 - AGENCY,St Lukes Stroke Ward,HCL NURSING,HNSI0000062,423.87
Department of Health,Leicestershire Partnership NHS Trust,09/07/19,NURSE - BAND 5 - AGENCY,St Lukes Stroke Ward,HCL NURSING,HNSI0000062,957.94
Department of Health,Leicestershire Partnership NHS Trust,09/07/19,NURSE - BAND 5 - AGENCY,St Lukes Ward 3,HCL NURSING,HNSI0000062,477.24
Department of Health,Leicestershire Partnership NHS Trust,09/07/19,NURSE - BAND 2 - AGENCY,Welford Ward,HCL NURSING,HNSI0000062,194.67
Department of Health,Leicestershire Partnership NHS Trust,09/07/19,Crs_NHS_LT1y -Resus Inventory Supplied.,Balance Sheet Collection,SUPPLY CHAIN CO LTD,1010073927,35130.08
Department of Health,Leicestershire Partnership NHS Trust,09/07/19,FP10'S,Adult City Central CMHT - St Peters,NHS BUS SERVICES AUTHORITY,1000060685,227.64
Department of Health,Leicestershire Partnership NHS Trust,09/07/19,FP10'S,Adult City Drugs,NHS BUS SERVICES AUTHORITY,1000060685,31981.50
Department of Health,Leicestershire Partnership NHS Trust,09/07/19,FP10'S,Adult County Drugs,NHS BUS SERVICES AUTHORITY,1000060685,31012.12
Department of Health,Leicestershire Partnership NHS Trust,09/07/19,FP10'S,CAMHS County Outpatients,NHS BUS SERVICES AUTHORITY,1000060685,11061.29
Department of Health,Leicestershire Partnership NHS Trust,09/07/19,FP10'S,Children Services Medical,NHS BUS SERVICES AUTHORITY,1000060685,7300.44
Department of Health,Leicestershire Partnership NHS Trust,09/07/19,FP10'S,Dementia Related Drugs and Investigations,NHS BUS SERVICES AUTHORITY,1000060685,3893.03
Department of Health,Leicestershire Partnership NHS Trust,09/07/19,FP10'S,Eating Disorders Outpatient Service,NHS BUS SERVICES AUTHORITY,1000060685,16.66
Department of Health,Leicestershire Partnership NHS Trust,09/07/19,FP10'S,Forensic Services - Community,NHS BUS SERVICES AUTHORITY,1000060685,187.50
Department of Health,Leicestershire Partnership NHS Trust,09/07/19,FP10'S,Leicestershire Psych-oncology Service,NHS BUS SERVICES AUTHORITY,1000060685,44.98
Department of Health,Leicestershire Partnership NHS Trust,09/07/19,FP10'S,Lough Swithland Ward,NHS BUS SERVICES AUTHORITY,1000060685,23.42
Department of Health,Leicestershire Partnership NHS Trust,09/07/19,FP10'S,PIER Team - Early Intervention Services,NHS BUS SERVICES AUTHORITY,1000060685,13510.86
Department of Health,Leicestershire Partnership NHS Trust,09/07/19,FP10'S,Pharmacy,NHS BUS SERVICES AUTHORITY,1000060685,1923.62
Department of Health,Leicestershire Partnership NHS Trust,09/07/19,FP10'S,Snr Med Staff (Inc Med Reps),NHS BUS SERVICES AUTHORITY,1000060685,3479.52
Department of Health,Leicestershire Partnership NHS Trust,09/07/19,FP10'S,Adult City Central CMHT - St Peters,NHS BUS SERVICES AUTHORITY,1000060020,312.56
Department of Health,Leicestershire Partnership NHS Trust,09/07/19,FP10'S,Adult City Drugs,NHS BUS SERVICES AUTHORITY,1000060020,26153.05
Department of Health,Leicestershire Partnership NHS Trust,09/07/19,FP10'S,Adult County Drugs,NHS BUS SERVICES AUTHORITY,1000060020,29376.16
Department of Health,Leicestershire Partnership NHS Trust,09/07/19,FP10'S,CAMHS County Outpatients,NHS BUS SERVICES AUTHORITY,1000060020,14469.41
Department of Health,Leicestershire Partnership NHS Trust,09/07/19,FP10'S,Children Services Medical,NHS BUS SERVICES AUTHORITY,1000060020,6568.87
Department of Health,Leicestershire Partnership NHS Trust,09/07/19,FP10'S,Dementia Related Drugs and Investigations,NHS BUS SERVICES AUTHORITY,1000060020,4807.04
Department of Health,Leicestershire Partnership NHS Trust,09/07/19,FP10'S,Eating Disorders Outpatient Service,NHS BUS SERVICES AUTHORITY,1000060020,99.18
Department of Health,Leicestershire Partnership NHS Trust,09/07/19,FP10'S,Forensic Services - Community,NHS BUS SERVICES AUTHORITY,1000060020,97.51
Department of Health,Leicestershire Partnership NHS Trust,09/07/19,FP10'S,Leicestershire Psych-oncology Service,NHS BUS SERVICES AUTHORITY,1000060020,152.97
Department of Health,Leicestershire Partnership NHS Trust,09/07/19,FP10'S,Lough Swithland Ward,NHS BUS SERVICES AUTHORITY,1000060020,96.12
Department of Health,Leicestershire Partnership NHS Trust,09/07/19,FP10'S,PIER Team - Early Intervention Services,NHS BUS SERVICES AUTHORITY,1000060020,17140.45
Department of Health,Leicestershire Partnership NHS Trust,09/07/19,FP10'S,Pharmacy,NHS BUS SERVICES AUTHORITY,1000060020,3206.06
Department of Health,Leicestershire Partnership NHS Trust,09/07/19,FP10'S,Snr Med Staff (Inc Med Reps),NHS BUS SERVICES AUTHORITY,1000060020,2829.16
Department of Health,Leicestershire Partnership NHS Trust,09/07/19,NURSE - BAND 5 - AGENCY,3 Rubicon Close,HCL NURSING,HNSI0000061,643.95
Department of Health,Leicestershire Partnership NHS Trust,09/07/19,Nurse - Band 6 -Agency,Adult City East CMHT - Merlyn Vaz,HCL NURSING,HNSI0000061,3247.16
Department of Health,Leicestershire Partnership NHS Trust,09/07/19,Nurse - Band 6 -Agency,Adult County Charnwood CMHT - Loughborough Base,HCL NURSING,HNSI0000061,1069.88
Department of Health,Leicestershire Partnership NHS Trust,09/07/19,Nurse - Band 6 -Agency,Adult County North West Leicestershire CMHT,HCL NURSING,HNSI0000061,1069.88
Department of Health,Leicestershire Partnership NHS Trust,09/07/19,Nurse - Band 6 -Agency,Adult County West Leicestershire CMHT,HCL NURSING,HNSI0000061,2220.58
Department of Health,Leicestershire Partnership NHS Trust,09/07/19,NURSE - BAND 2 - AGENCY,Agnes Unit Management,HCL NURSING,HNSI0000061,1139.34
Department of Health,Leicestershire Partnership NHS Trust,09/07/19,NURSE - BAND 5 - AGENCY,Agnes Unit Management,HCL NURSING,HNSI0000061,606.27
Department of Health,Leicestershire Partnership NHS Trust,09/07/19,NURSE - BAND 2 - AGENCY,Beaumont Ward - Bradgate Unit,HCL NURSING,HNSI0000061,222.50
Department of Health,Leicestershire Partnership NHS Trust,09/07/19,NURSE - BAND 5 - AGENCY,Beaumont Ward - Bradgate Unit,HCL NURSING,HNSI0000061,346.72
Department of Health,Leicestershire Partnership NHS Trust,09/07/19,NURSE - BAND 2 - AGENCY,Belvoir Psychiatric Intensive Care Unit,HCL NURSING,HNSI0000061,2310.99
Department of Health,Leicestershire Partnership NHS Trust,09/07/19,NURSE - BAND 5 - AGENCY,Belvoir Psychiatric Intensive Care Unit,HCL NURSING,HNSI0000061,1073.80
Department of Health,Leicestershire Partnership NHS Trust,09/07/19,NURSE - BAND 2 - AGENCY,Bosworth Ward - Bradgate Unit,HCL NURSING,HNSI0000061,336.82
Department of Health,Leicestershire Partnership NHS Trust,09/07/19,NURSE - BAND 5 - AGENCY,Bosworth Ward - Bradgate Unit,HCL NURSING,HNSI0000061,370.38
Department of Health,Leicestershire Partnership NHS Trust,09/07/19,Nurse - Band 6 -Agency,Crisis Resolution,HCL NURSING,HNSI0000061,7121.44
Department of Health,Leicestershire Partnership NHS Trust,09/07/19,NURSE - BAND 2 - AGENCY,Griffin Ward (HPC),HCL NURSING,HNSI0000061,92.53
Department of Health,Leicestershire Partnership NHS Trust,09/07/19,NURSE - BAND 5 - AGENCY,Griffin Ward (HPC),HCL NURSING,HNSI0000061,3336.24
Department of Health,Leicestershire Partnership NHS Trust,09/07/19,NURSE - BAND 2 - AGENCY,Heather Ward,HCL NURSING,HNSI0000061,419.10
Department of Health,Leicestershire Partnership NHS Trust,09/07/19,NURSE - BAND 5 - AGENCY,Heather Ward,HCL NURSING,HNSI0000061,903.86
Department of Health,Leicestershire Partnership NHS Trust,09/07/19,Nurse - Band 6 -Agency,Leicestershire Psych-oncology Service,HCL NURSING,HNSI0000061,213.98
Department of Health,Leicestershire Partnership NHS Trust,09/07/19,Nurse - Band 6 -Agency,Mental Health Triage Team,HCL NURSING,HNSI0000061,2261.47
Department of Health,Leicestershire Partnership NHS Trust,09/07/19,NURSE - BAND 2 - AGENCY,Mill Lodge,HCL NURSING,HNSI0000061,1794.26
Department of Health,Leicestershire Partnership NHS Trust,09/07/19,NURSE - BAND 2 - AGENCY,Thornton Ward - Bradgate Unit,HCL NURSING,HNSI0000061,1392.54
Department of Health,Leicestershire Partnership NHS Trust,09/07/19,NURSE - BAND 5 - AGENCY,Thornton Ward - Bradgate Unit,HCL NURSING,HNSI0000061,266.74
Department of Health,Leicestershire Partnership NHS Trust,09/07/19,NURSE - BAND 2 - AGENCY,Watermead Ward (Bradgate Unit),HCL NURSING,HNSI0000061,382.56
Department of Health,Leicestershire Partnership NHS Trust,09/07/19,NURSE - BAND 5 - AGENCY,Watermead Ward (Bradgate Unit),HCL NURSING,HNSI0000061,329.81
Department of Health,Leicestershire Partnership NHS Trust,10/07/19,Computer Maintenance,Finance Department,SOFTWARE BOX LTD,INV0104131,30347.99
Department of Health,Leicestershire Partnership NHS Trust,11/07/19,Tax/SS Crs-LT1y-Deduction-Ers P11D,Balance Sheet Collection,H M REVENUE & CUSTOMS (IRT813),267PK001110871913A,171167.51
Department of Health,Leicestershire Partnership NHS Trust,12/07/19,Pathology Service,CHS Inpatient Management,UHL NHS TRUST (RWE),L0229286,5632.79
Department of Health,Leicestershire Partnership NHS Trust,12/07/19,Pathology Service,Children Services Medical,UHL NHS TRUST (RWE),L0229286,9118.70
Department of Health,Leicestershire Partnership NHS Trust,12/07/19,Pathology Service,UHL Expenditure Contract,UHL NHS TRUST (RWE),L0229286,11849.76
Department of Health,Leicestershire Partnership NHS Trust,12/07/19,WIP Project Not In BS - Capital Staffing,Work in Progress,INTERSERVE CONSTRUCTION LTD,VEM55050,77025.18
Department of Health,Leicestershire Partnership NHS Trust,12/07/19,Insurance Costs,Chief Executives Office,NHS LITIGATION AUTHORITY,SICX/00145761,83439.60
Department of Health,Leicestershire Partnership NHS Trust,15/07/19,Crs_NHS_LT1y -Resus Inventory Supplied.,Balance Sheet Collection,SUPPLY CHAIN CO LTD,1010080186,41706.93
Department of Health,Leicestershire Partnership NHS Trust,15/07/19,UHL Facilities Management SLA,Estates Central Invoices To Recharge,UHL NHS TRUST (RWE),L0229291,827106.58
Department of Health,Leicestershire Partnership NHS Trust,15/07/19,NURSE - BAND 5 - AGENCY,3 Rubicon Close,HCL NURSING,HNSI0000065,849.11
Department of Health,Leicestershire Partnership NHS Trust,15/07/19,Nurse - Band 6 -Agency,Adult County Charnwood CMHT - Loughborough Base,HCL NURSING,HNSI0000065,1069.88
Department of Health,Leicestershire Partnership NHS Trust,15/07/19,Nurse - Band 6 -Agency,Adult County North West Leicestershire CMHT,HCL NURSING,HNSI0000065,1703.84
Department of Health,Leicestershire Partnership NHS Trust,15/07/19,Nurse - Band 6 -Agency,Adult County West Leicestershire CMHT,HCL NURSING,HNSI0000065,1110.29
Department of Health,Leicestershire Partnership NHS Trust,15/07/19,NURSE - BAND 2 - AGENCY,Agnes Unit Management,HCL NURSING,HNSI0000065,1393.89
Department of Health,Leicestershire Partnership NHS Trust,15/07/19,NURSE - BAND 5 - AGENCY,Agnes Unit Management,HCL NURSING,HNSI0000065,346.54
Department of Health,Leicestershire Partnership NHS Trust,15/07/19,NURSE - BAND 2 - AGENCY,Aston Ward (Bradgate Unit),HCL NURSING,HNSI0000065,168.41
Department of Health,Leicestershire Partnership NHS Trust,15/07/19,NURSE - BAND 2 - AGENCY,Beaumont Ward - Bradgate Unit,HCL NURSING,HNSI0000065,327.43
Department of Health,Leicestershire Partnership NHS Trust,15/07/19,NURSE - BAND 2 - AGENCY,Belvoir Psychiatric Intensive Care Unit,HCL NURSING,HNSI0000065,2735.86
Department of Health,Leicestershire Partnership NHS Trust,15/07/19,NURSE - BAND 5 - AGENCY,Belvoir Psychiatric Intensive Care Unit,HCL NURSING,HNSI0000065,1603.37
Department of Health,Leicestershire Partnership NHS Trust,15/07/19,NURSE - BAND 2 - AGENCY,Bosworth Ward - Bradgate Unit,HCL NURSING,HNSI0000065,446.36
Department of Health,Leicestershire Partnership NHS Trust,15/07/19,Nurse - Band 6 -Agency,Crisis Resolution,HCL NURSING,HNSI0000065,1205.60
Department of Health,Leicestershire Partnership NHS Trust,15/07/19,NURSE - BAND 5 - AGENCY,Griffin Ward (HPC),HCL NURSING,HNSI0000065,2850.63
Department of Health,Leicestershire Partnership NHS Trust,15/07/19,NURSE - BAND 5 - AGENCY,Heather Ward,HCL NURSING,HNSI0000065,1052.52
Department of Health,Leicestershire Partnership NHS Trust,15/07/19,Nurse - Band 6 -Agency,Leicestershire Psych-oncology Service,HCL NURSING,HNSI0000065,213.98
Department of Health,Leicestershire Partnership NHS Trust,15/07/19,Nurse - Band 6 -Agency,Mental Health Triage Team,HCL NURSING,HNSI0000065,217.62
Department of Health,Leicestershire Partnership NHS Trust,15/07/19,NURSE - BAND 2 - AGENCY,Mill Lodge,HCL NURSING,HNSI0000065,3563.80
Department of Health,Leicestershire Partnership NHS Trust,15/07/19,NURSE - BAND 5 - AGENCY,Mill Lodge,HCL NURSING,HNSI0000065,824.88
Department of Health,Leicestershire Partnership NHS Trust,15/07/19,NURSE - BAND 2 - AGENCY,Phoenix Ward (HPC),HCL NURSING,HNSI0000065,668.95
Department of Health,Leicestershire Partnership NHS Trust,15/07/19,NURSE - BAND 5 - AGENCY,Thornton Ward - Bradgate Unit,HCL NURSING,HNSI0000065,305.39
Department of Health,Leicestershire Partnership NHS Trust,15/07/19,NURSE - BAND 2 - AGENCY,Watermead Ward (Bradgate Unit),HCL NURSING,HNSI0000065,168.41
Department of Health,Leicestershire Partnership NHS Trust,16/07/19,Payroll Deductions - Kiddi Vouchers,Balance Sheet Collection,WIDER PLAN LTD,5088784,38900.97
Department of Health,Leicestershire Partnership NHS Trust,17/07/19,Internal Printing (machines and ink),Estates & Facilities Central,LEXMARK INTERNATIONAL LTD,900650006498,43681.80
Department of Health,Leicestershire Partnership NHS Trust,18/07/19,NURSE - BAND 2 - AGENCY,Beechwood Ward,HCL NURSING,HNSI0000066,380.35
Department of Health,Leicestershire Partnership NHS Trust,18/07/19,NURSE - BAND 5 - AGENCY,City ICS,HCL NURSING,HNSI0000066,871.47
Department of Health,Leicestershire Partnership NHS Trust,18/07/19,NURSE - BAND 5 - AGENCY,City Planned Care - East,HCL NURSING,HNSI0000066,16561.58
Department of Health,Leicestershire Partnership NHS Trust,18/07/19,NURSE - BAND 5 - AGENCY,City Planned Care - West,HCL NURSING,HNSI0000066,10821.43
Department of Health,Leicestershire Partnership NHS Trust,18/07/19,Nurse - Band 6 -Agency,City West CMHT MHSOP,HCL NURSING,HNSI0000066,1925.78
Department of Health,Leicestershire Partnership NHS Trust,18/07/19,NURSE - BAND 2 - AGENCY,Clarendon Ward,HCL NURSING,HNSI0000066,713.47
Department of Health,Leicestershire Partnership NHS Trust,18/07/19,NURSE - BAND 5 - AGENCY,Clarendon Ward,HCL NURSING,HNSI0000066,1770.40
Department of Health,Leicestershire Partnership NHS Trust,18/07/19,NURSE - BAND 2 - AGENCY,Coalville Snibston Ward,HCL NURSING,HNSI0000066,423.87
Department of Health,Leicestershire Partnership NHS Trust,18/07/19,NURSE - BAND 2 - AGENCY,Coalville Ward 2,HCL NURSING,HNSI0000066,1034.80
Department of Health,Leicestershire Partnership NHS Trust,18/07/19,NURSE - BAND 5 - AGENCY,Coalville Ward 2,HCL NURSING,HNSI0000066,813.63
Department of Health,Leicestershire Partnership NHS Trust,18/07/19,NURSE - BAND 5 - AGENCY,Coleman Ward,HCL NURSING,HNSI0000066,302.58
Department of Health,Leicestershire Partnership NHS Trust,18/07/19,NURSE - BAND 5 - AGENCY,"East Planned Care - Oadby,Wigston & Harborough",HCL NURSING,HNSI0000066,283.41
Department of Health,Leicestershire Partnership NHS Trust,18/07/19,NURSE - BAND 5 - AGENCY,Evening Service,HCL NURSING,HNSI0000066,707.93
Department of Health,Leicestershire Partnership NHS Trust,18/07/19,NURSE - BAND 5 - AGENCY,Fielding Palmer Nursing,HCL NURSING,HNSI0000066,3151.68
Department of Health,Leicestershire Partnership NHS Trust,18/07/19,NURSE - BAND 2 - AGENCY,H&B Comm Hosp East Ward,HCL NURSING,HNSI0000066,1550.13
Department of Health,Leicestershire Partnership NHS Trust,18/07/19,NURSE - BAND 5 - AGENCY,H&B Comm Hosp East Ward,HCL NURSING,HNSI0000066,893.40
Department of Health,Leicestershire Partnership NHS Trust,18/07/19,NURSE - BAND 2 - AGENCY,Kirby Ward,HCL NURSING,HNSI0000066,279.07
Department of Health,Leicestershire Partnership NHS Trust,18/07/19,NURSE - BAND 5 - AGENCY,Kirby Ward,HCL NURSING,HNSI0000066,326.24
Department of Health,Leicestershire Partnership NHS Trust,18/07/19,NURSE - BAND 5 - AGENCY,Lough Swithland Ward,HCL NURSING,HNSI0000066,1233.45
Department of Health,Leicestershire Partnership NHS Trust,18/07/19,NURSE - BAND 5 - AGENCY,South East ICS,HCL NURSING,HNSI0000066,1057.93
Department of Health,Leicestershire Partnership NHS Trust,18/07/19,NURSE - BAND 2 - AGENCY,St Lukes Stroke Ward,HCL NURSING,HNSI0000066,531.51
Department of Health,Leicestershire Partnership NHS Trust,18/07/19,NURSE - BAND 2 - AGENCY,St Lukes Ward 3,HCL NURSING,HNSI0000066,800.88
Department of Health,Leicestershire Partnership NHS Trust,18/07/19,NURSE - BAND 5 - AGENCY,St Lukes Ward 3,HCL NURSING,HNSI0000066,317.72
Department of Health,Leicestershire Partnership NHS Trust,18/07/19,NURSE - BAND 5 - AGENCY,West Planned Care  - Charnwood Hub,HCL NURSING,HNSI0000066,276.65
Department of Health,Leicestershire Partnership NHS Trust,19/07/19,Landline Telephone Rental / Calls,"Beaumont Leys Health Centre (P94, LPT)",VIRGIN MEDIA BUSINESS,853083001/004/0719,416.53
Department of Health,Leicestershire Partnership NHS Trust,19/07/19,Landline Telephone Rental / Calls,Belgrave Health Centre (CHP),VIRGIN MEDIA BUSINESS,853083001/004/0719,453.37
Department of Health,Leicestershire Partnership NHS Trust,19/07/19,Landline Telephone Rental / Calls,"Bennion Centre (including Forest Grange Day Unit) (P8, LPT)",VIRGIN MEDIA BUSINESS,853083001/004/0719,7.74
Department of Health,Leicestershire Partnership NHS Trust,19/07/19,Landline Telephone Rental / Calls,"Bradgate Unit (including Glenvale day Unit) (P7, LPT)",VIRGIN MEDIA BUSINESS,853083001/004/0719,7657.20
Department of Health,Leicestershire Partnership NHS Trust,19/07/19,Landline Telephone Rental / Calls,Braunstone Health and Social Care Centre (Part) (PROPCO),VIRGIN MEDIA BUSINESS,853083001/004/0719,1327.57
Department of Health,Leicestershire Partnership NHS Trust,19/07/19,Landline Telephone Rental / Calls,Bridge Park Plaza - First Floor (LPT),VIRGIN MEDIA BUSINESS,853083001/004/0719,4313.58
Department of Health,Leicestershire Partnership NHS Trust,19/07/19,Landline Telephone Rental / Calls,"Coalville Community Hospital (P138, LPT)",VIRGIN MEDIA BUSINESS,853083001/004/0719,1401.15
Department of Health,Leicestershire Partnership NHS Trust,19/07/19,Landline Telephone Rental / Calls,"Coalville Health Centre (P121, LPT)",VIRGIN MEDIA BUSINESS,853083001/004/0719,376.48
Department of Health,Leicestershire Partnership NHS Trust,19/07/19,Landline Telephone Rental / Calls,County Hall,VIRGIN MEDIA BUSINESS,853083001/004/0719,1480.19
Department of Health,Leicestershire Partnership NHS Trust,19/07/19,Landline Telephone Rental / Calls,Estates & Facilities Central,VIRGIN MEDIA BUSINESS,853083001/004/0719,3946.35
Department of Health,Leicestershire Partnership NHS Trust,19/07/19,Landline Telephone Rental / Calls,"Evington Centre (P6, LPT)",VIRGIN MEDIA BUSINESS,853083001/004/0719,1529.28
Department of Health,Leicestershire Partnership NHS Trust,19/07/19,Landline Telephone Rental / Calls,HIS,VIRGIN MEDIA BUSINESS,853083001/004/0719,2528.76
Department of Health,Leicestershire Partnership NHS Trust,19/07/19,Landline Telephone Rental / Calls,"Hawthorne Centre - Coalville (P14, LPT)",VIRGIN MEDIA BUSINESS,853083001/004/0719,525.19
Department of Health,Leicestershire Partnership NHS Trust,19/07/19,Landline Telephone Rental / Calls,Hinckley & District Hospital (PROPCO),VIRGIN MEDIA BUSINESS,853083001/004/0719,1377.96
Department of Health,Leicestershire Partnership NHS Trust,19/07/19,Landline Telephone Rental / Calls,"Hinckley and Bosworth Community Hospital (Sunnyside) (P133, LPT)",VIRGIN MEDIA BUSINESS,853083001/004/0719,1067.35
Department of Health,Leicestershire Partnership NHS Trust,19/07/19,Landline Telephone Rental / Calls,Hood Park Leisure Centre Clinic,VIRGIN MEDIA BUSINESS,853083001/004/0719,93.44
Department of Health,Leicestershire Partnership NHS Trust,19/07/19,Landline Telephone Rental / Calls,"Hynca Lodge (P33, LPT)",VIRGIN MEDIA BUSINESS,853083001/004/0719,370.07
Department of Health,Leicestershire Partnership NHS Trust,19/07/19,Landline Telephone Rental / Calls,"Legion House, Ashby",VIRGIN MEDIA BUSINESS,853083001/004/0719,62.04
Department of Health,Leicestershire Partnership NHS Trust,19/07/19,Landline Telephone Rental / Calls,Loughborough Health Centre (PROPCO),VIRGIN MEDIA BUSINESS,853083001/004/0719,8.38
Department of Health,Leicestershire Partnership NHS Trust,19/07/19,Landline Telephone Rental / Calls,"Loughborough Hospital (P136, LPT)",VIRGIN MEDIA BUSINESS,853083001/004/0719,4701.70
Department of Health,Leicestershire Partnership NHS Trust,19/07/19,Landline Telephone Rental / Calls,Mawson House (LPT),VIRGIN MEDIA BUSINESS,853083001/004/0719,487.46
Department of Health,Leicestershire Partnership NHS Trust,19/07/19,Landline Telephone Rental / Calls,Melbourne Centre (Pt Grnd flr) (PROPCO),VIRGIN MEDIA BUSINESS,853083001/004/0719,6.45
Department of Health,Leicestershire Partnership NHS Trust,19/07/19,Landline Telephone Rental / Calls,Melton Mowbray Hospital (previously St. Mary's) (PROPCO),VIRGIN MEDIA BUSINESS,853083001/004/0719,1761.44
Department of Health,Leicestershire Partnership NHS Trust,19/07/19,Landline Telephone Rental / Calls,Merlyn Vaz Centre (CHP),VIRGIN MEDIA BUSINESS,853083001/004/0719,2201.43
Department of Health,Leicestershire Partnership NHS Trust,19/07/19,Landline Telephone Rental / Calls,"Mett Centre (P49, LPT)",VIRGIN MEDIA BUSINESS,853083001/004/0719,86.89
Department of Health,Leicestershire Partnership NHS Trust,19/07/19,Landline Telephone Rental / Calls,NSPCC Training Cente,VIRGIN MEDIA BUSINESS,853083001/004/0719,177.13
Department of Health,Leicestershire Partnership NHS Trust,19/07/19,Landline Telephone Rental / Calls,New Parks Health Centre (PROPCO),VIRGIN MEDIA BUSINESS,853083001/004/0719,1730.23
Department of Health,Leicestershire Partnership NHS Trust,19/07/19,Landline Telephone Rental / Calls,"OSL House (P54, LPT)",VIRGIN MEDIA BUSINESS,853083001/004/0719,3244.58
Department of Health,Leicestershire Partnership NHS Trust,19/07/19,Landline Telephone Rental / Calls,"Orchard Resource Centre (P15, LPT)",VIRGIN MEDIA BUSINESS,853083001/004/0719,536.65
Department of Health,Leicestershire Partnership NHS Trust,19/07/19,Landline Telephone Rental / Calls,Pasley Road Health Centre (PROPCO),VIRGIN MEDIA BUSINESS,853083001/004/0719,282.05
Department of Health,Leicestershire Partnership NHS Trust,19/07/19,Landline Telephone Rental / Calls,"Prince Philip House (P96, LPT)",VIRGIN MEDIA BUSINESS,853083001/004/0719,1653.89
Department of Health,Leicestershire Partnership NHS Trust,19/07/19,Landline Telephone Rental / Calls,Rushey Mead Health Centre (PROPCO),VIRGIN MEDIA BUSINESS,853083001/004/0719,77.03
Department of Health,Leicestershire Partnership NHS Trust,19/07/19,Landline Telephone Rental / Calls,"Shepshed Health Centre (P123, LPT)",VIRGIN MEDIA BUSINESS,853083001/004/0719,10.13
Department of Health,Leicestershire Partnership NHS Trust,19/07/19,Landline Telephone Rental / Calls,"Springfield Road Health Centre (P92, LPT)",VIRGIN MEDIA BUSINESS,853083001/004/0719,413.76
Department of Health,Leicestershire Partnership NHS Trust,19/07/19,Landline Telephone Rental / Calls,St Johns House (1st Floor) (PROPCO),VIRGIN MEDIA BUSINESS,853083001/004/0719,1522.95
Department of Health,Leicestershire Partnership NHS Trust,19/07/19,Landline Telephone Rental / Calls,St Peters Primary Care Centre (CHP),VIRGIN MEDIA BUSINESS,853083001/004/0719,2560.52
Department of Health,Leicestershire Partnership NHS Trust,19/07/19,Landline Telephone Rental / Calls,"Stewart House (P61, LPT)",VIRGIN MEDIA BUSINESS,853083001/004/0719,7.74
Department of Health,Leicestershire Partnership NHS Trust,19/07/19,Landline Telephone Rental / Calls,"Swithland House - London Road 352 (P44, LPT)",VIRGIN MEDIA BUSINESS,853083001/004/0719,391.06
Department of Health,Leicestershire Partnership NHS Trust,19/07/19,Landline Telephone Rental / Calls,"The Cedars (P19, LPT)",VIRGIN MEDIA BUSINESS,853083001/004/0719,631.30
Department of Health,Leicestershire Partnership NHS Trust,19/07/19,Landline Telephone Rental / Calls,"The Willows - Cordelia Close (P22, LPT)",VIRGIN MEDIA BUSINESS,853083001/004/0719,443.46
Department of Health,Leicestershire Partnership NHS Trust,19/07/19,Landline Telephone Rental / Calls,Uppingham Road Health Centre (PROPCO),VIRGIN MEDIA BUSINESS,853083001/004/0719,258.13
Department of Health,Leicestershire Partnership NHS Trust,19/07/19,Landline Telephone Rental / Calls,"Valentine Centre (P3, LPT)",VIRGIN MEDIA BUSINESS,853083001/004/0719,1761.80
Department of Health,Leicestershire Partnership NHS Trust,19/07/19,Landline Telephone Rental / Calls,Warren Park Way 25 (PROPCO),VIRGIN MEDIA BUSINESS,853083001/004/0719,1041.38
Department of Health,Leicestershire Partnership NHS Trust,19/07/19,Landline Telephone Rental / Calls,"Westcotes Group -Westcotes House (P78, LPT)",VIRGIN MEDIA BUSINESS,853083001/004/0719,1469.02
Department of Health,Leicestershire Partnership NHS Trust,19/07/19,Landline Telephone Rental / Calls,Westcotes Health Centre (CHP),VIRGIN MEDIA BUSINESS,853083001/004/0719,775.40
Department of Health,Leicestershire Partnership NHS Trust,19/07/19,Landline Telephone Rental / Calls,"Winstanley Drive Health Centre (P8, LPT)",VIRGIN MEDIA BUSINESS,853083001/004/0719,429.02
Department of Health,Leicestershire Partnership NHS Trust,19/07/19,Med GP Trainees,Medical Trainees,ST.HELENS & KNOWSLEY NHS TRUST,16786690,60000.00
Department of Health,Leicestershire Partnership NHS Trust,19/07/19,Drugs,Adult City Drugs,JANSSEN-CILAG LTD,930534098,10457.34
Department of Health,Leicestershire Partnership NHS Trust,19/07/19,Drugs,Adult County Drugs,JANSSEN-CILAG LTD,930534098,15686.01
Department of Health,Leicestershire Partnership NHS Trust,22/07/19,Crs_NHS_LT1y -Resus Inventory Supplied.,Balance Sheet Collection,SUPPLY CHAIN CO LTD,1010082857,32991.66
Department of Health,Leicestershire Partnership NHS Trust,22/07/19,HIS LPT Costs,HIS,JAC COMPUTER SERVICES LTD,INV000423,154283.40
Department of Health,Leicestershire Partnership NHS Trust,22/07/19,Med Trainees - FY1,Medical Trainees,UHL NHS TRUST (RWE),L0229868,27679.00
Department of Health,Leicestershire Partnership NHS Trust,22/07/19,Med Trainees - FY1,Medical Trainees,UHL NHS TRUST (RWE),L0229870,27688.87
Department of Health,Leicestershire Partnership NHS Trust,23/07/19,Leased / Hired Vehicles,Acute (CAFS Onc Resp PT),AUTOMOTIVE LEASING LTD,505596175,349.00
Department of Health,Leicestershire Partnership NHS Trust,23/07/19,Prep_ LT1y -Prepayments Lease Cars,Balance Sheet Collection,AUTOMOTIVE LEASING LTD,505596175,40509.83
Department of Health,Leicestershire Partnership NHS Trust,23/07/19,Leased / Hired Vehicles,CAMHS Inpatient Service,AUTOMOTIVE LEASING LTD,505596175,35.00
Department of Health,Leicestershire Partnership NHS Trust,23/07/19,Leased / Hired Vehicles,CAMHS Young Peoples Team,AUTOMOTIVE LEASING LTD,505596175,2723.60
Department of Health,Leicestershire Partnership NHS Trust,23/07/19,Leased / Hired Vehicles,CHS IP Medical Cover,AUTOMOTIVE LEASING LTD,505596175,127.00
Department of Health,Leicestershire Partnership NHS Trust,23/07/19,Leased / Hired Vehicles,City ICS,AUTOMOTIVE LEASING LTD,505596175,5.00
Department of Health,Leicestershire Partnership NHS Trust,23/07/19,Leased / Hired Vehicles,City Planned Care - East,AUTOMOTIVE LEASING LTD,505596175,465.88
Department of Health,Leicestershire Partnership NHS Trust,23/07/19,Leased / Hired Vehicles,County 0-19 South Charnwood HV,AUTOMOTIVE LEASING LTD,505596175,5.88
Department of Health,Leicestershire Partnership NHS Trust,23/07/19,Leased / Hired Vehicles,Crisis Resolution,AUTOMOTIVE LEASING LTD,505596175,261.04
Department of Health,Leicestershire Partnership NHS Trust,23/07/19,Leased / Hired Vehicles,Crisis Response and Home Treatment,AUTOMOTIVE LEASING LTD,505596175,5.00
Department of Health,Leicestershire Partnership NHS Trust,23/07/19,Leased / Hired Vehicles,Liaison and Diversion,AUTOMOTIVE LEASING LTD,505596175,686.41
Department of Health,Leicestershire Partnership NHS Trust,23/07/19,Leased / Hired Vehicles,MHSOP Inpatient Therapy - Evington,AUTOMOTIVE LEASING LTD,505596175,5.00
Department of Health,Leicestershire Partnership NHS Trust,23/07/19,Leased / Hired Vehicles,MHSOP Medical Staffing,AUTOMOTIVE LEASING LTD,505596175,232.52
Department of Health,Leicestershire Partnership NHS Trust,23/07/19,Leased / Hired Vehicles,North West ICS,AUTOMOTIVE LEASING LTD,505596175,15.00
Department of Health,Leicestershire Partnership NHS Trust,23/07/19,Leased / Hired Vehicles,PIER Team - Early Intervention Services,AUTOMOTIVE LEASING LTD,505596175,1060.90
Department of Health,Leicestershire Partnership NHS Trust,23/07/19,Leased / Hired Vehicles,Respiratory Service,AUTOMOTIVE LEASING LTD,505596175,5.00
Department of Health,Leicestershire Partnership NHS Trust,23/07/19,Leased / Hired Vehicles,West Leicestershire CMHT MHSOP,AUTOMOTIVE LEASING LTD,505596175,5.00
Department of Health,Leicestershire Partnership NHS Trust,23/07/19,Leased / Hired Vehicles,West Planned Care  - Charnwood Hub,AUTOMOTIVE LEASING LTD,505596175,5.00
Department of Health,Leicestershire Partnership NHS Trust,24/07/19,WIP Project Not in BS - Buildings excl Dwellings,Work in Progress,INTERSERVE CONSTRUCTION LTD,VEM55053,201020.50
Department of Health,Leicestershire Partnership NHS Trust,24/07/19,OCCUPATIONAL THERAPIST - AGENCY,Adult City West CMHT - BHSCC,MSI RECRUITMENT,MSIR120719,888.41
Department of Health,Leicestershire Partnership NHS Trust,24/07/19,Professional & Technical Agency,CAMHS CITY TEAM,MSI RECRUITMENT,MSIR120719,4702.58
Department of Health,Leicestershire Partnership NHS Trust,24/07/19,PHYSIOTHERAPY - AGENCY,City Community Therapy,MSI RECRUITMENT,MSIR120719,3764.03
Department of Health,Leicestershire Partnership NHS Trust,24/07/19,PHYSIOTHERAPY - AGENCY,City ICS,MSI RECRUITMENT,MSIR120719,2290.84
Department of Health,Leicestershire Partnership NHS Trust,24/07/19,PODIATRIST - AGENCY,County Podiatry Service,MSI RECRUITMENT,MSIR120719,774.07
Department of Health,Leicestershire Partnership NHS Trust,24/07/19,PHYSIOTHERAPY - AGENCY,East Community Therapy,MSI RECRUITMENT,MSIR120719,1290.12
Department of Health,Leicestershire Partnership NHS Trust,24/07/19,OCCUPATIONAL THERAPIST - AGENCY,H&B Comm Hosp East Ward,MSI RECRUITMENT,MSIR120719,790.01
Department of Health,Leicestershire Partnership NHS Trust,24/07/19,PHYSIOTHERAPY - AGENCY,Integrated Care Service - Rutland,MSI RECRUITMENT,MSIR120719,1183.85
Department of Health,Leicestershire Partnership NHS Trust,24/07/19,PHYSIOTHERAPY - AGENCY,Learning Disabilities - Physiotherapy,MSI RECRUITMENT,MSIR120719,1225.30
Department of Health,Leicestershire Partnership NHS Trust,24/07/19,PHYSIOTHERAPY - AGENCY,Mill Lodge,MSI RECRUITMENT,MSIR120719,1213.52
Department of Health,Leicestershire Partnership NHS Trust,24/07/19,PHYSIOTHERAPY - AGENCY,Neuro/Stroke Rehab Service,MSI RECRUITMENT,MSIR120719,5695.73
Department of Health,Leicestershire Partnership NHS Trust,24/07/19,Professional & Technical Agency,Personality Disorder Services (PDS),MSI RECRUITMENT,MSIR120719,1457.50
Department of Health,Leicestershire Partnership NHS Trust,25/07/19,NURSE - BAND 5 - AGENCY,3 Rubicon Close,HCL NURSING,HNSI0000082,371.81
Department of Health,Leicestershire Partnership NHS Trust,25/07/19,Nurse - Band 6 -Agency,Adult City East CMHT - Merlyn Vaz,HCL NURSING,HNSI0000082,5778.17
Department of Health,Leicestershire Partnership NHS Trust,25/07/19,Nurse - Band 6 -Agency,Adult County Charnwood CMHT - Loughborough Base,HCL NURSING,HNSI0000082,1069.88
Department of Health,Leicestershire Partnership NHS Trust,25/07/19,Nurse - Band 6 -Agency,Adult County North West Leicestershire CMHT,HCL NURSING,HNSI0000082,855.90
Department of Health,Leicestershire Partnership NHS Trust,25/07/19,NURSE - BAND 2 - AGENCY,Agnes Unit Management,HCL NURSING,HNSI0000082,390.38
Department of Health,Leicestershire Partnership NHS Trust,25/07/19,NURSE - BAND 5 - AGENCY,Ashby Ward (Bradgate Unit),HCL NURSING,HNSI0000082,370.38
Department of Health,Leicestershire Partnership NHS Trust,25/07/19,NURSE - BAND 2 - AGENCY,Aston Ward (Bradgate Unit),HCL NURSING,HNSI0000082,602.03
Department of Health,Leicestershire Partnership NHS Trust,25/07/19,NURSE - BAND 2 - AGENCY,Beaumont Ward - Bradgate Unit,HCL NURSING,HNSI0000082,575.77
Department of Health,Leicestershire Partnership NHS Trust,25/07/19,NURSE - BAND 5 - AGENCY,Beaumont Ward - Bradgate Unit,HCL NURSING,HNSI0000082,339.96
Department of Health,Leicestershire Partnership NHS Trust,25/07/19,NURSE - BAND 2 - AGENCY,Belvoir Psychiatric Intensive Care Unit,HCL NURSING,HNSI0000082,2626.47
Department of Health,Leicestershire Partnership NHS Trust,25/07/19,NURSE - BAND 5 - AGENCY,Belvoir Psychiatric Intensive Care Unit,HCL NURSING,HNSI0000082,1489.35
Department of Health,Leicestershire Partnership NHS Trust,25/07/19,NURSE - BAND 2 - AGENCY,Bosworth Ward - Bradgate Unit,HCL NURSING,HNSI0000082,223.60
Department of Health,Leicestershire Partnership NHS Trust,25/07/19,NURSE - BAND 5 - AGENCY,Bosworth Ward - Bradgate Unit,HCL NURSING,HNSI0000082,1273.09
Department of Health,Leicestershire Partnership NHS Trust,25/07/19,Nurse - Band 6 -Agency,Crisis Resolution,HCL NURSING,HNSI0000082,5876.32
Department of Health,Leicestershire Partnership NHS Trust,25/07/19,NURSE - BAND 5 - AGENCY,Griffin Ward (HPC),HCL NURSING,HNSI0000082,3467.38
Department of Health,Leicestershire Partnership NHS Trust,25/07/19,NURSE - BAND 5 - AGENCY,Heather Ward,HCL NURSING,HNSI0000082,1103.22
Department of Health,Leicestershire Partnership NHS Trust,25/07/19,Nurse - Band 6 -Agency,Leicestershire Psych-oncology Service,HCL NURSING,HNSI0000082,641.93
Department of Health,Leicestershire Partnership NHS Trust,25/07/19,NURSE - BAND 2 - AGENCY,Maple Ward,HCL NURSING,HNSI0000082,154.42
Department of Health,Leicestershire Partnership NHS Trust,25/07/19,Nurse - Band 6 -Agency,Mental Health Triage Team,HCL NURSING,HNSI0000082,2411.85
Department of Health,Leicestershire Partnership NHS Trust,25/07/19,NURSE - BAND 2 - AGENCY,Mill Lodge,HCL NURSING,HNSI0000082,2016.48
Department of Health,Leicestershire Partnership NHS Trust,25/07/19,NURSE - BAND 5 - AGENCY,Mill Lodge,HCL NURSING,HNSI0000082,274.96
Department of Health,Leicestershire Partnership NHS Trust,25/07/19,NURSE - BAND 2 - AGENCY,Phoenix Ward (HPC),HCL NURSING,HNSI0000082,387.13
Department of Health,Leicestershire Partnership NHS Trust,25/07/19,NURSE - BAND 5 - AGENCY,Stewart House,HCL NURSING,HNSI0000082,611.59
Department of Health,Leicestershire Partnership NHS Trust,25/07/19,NURSE - BAND 5 - AGENCY,Thornton Ward - Bradgate Unit,HCL NURSING,HNSI0000082,392.89
Department of Health,Leicestershire Partnership NHS Trust,25/07/19,NURSE - BAND 2 - AGENCY,Watermead Ward (Bradgate Unit),HCL NURSING,HNSI0000082,985.17
Department of Health,Leicestershire Partnership NHS Trust,25/07/19,NURSE - BAND 5 - AGENCY,Watermead Ward (Bradgate Unit),HCL NURSING,HNSI0000082,1306.89
Department of Health,Leicestershire Partnership NHS Trust,25/07/19,Pathology Service,CHS Inpatient Management,UHL NHS TRUST (RWE),L0228912,5101.52
Department of Health,Leicestershire Partnership NHS Trust,25/07/19,Pathology Service,Children Services Medical,UHL NHS TRUST (RWE),L0228912,9198.51
Department of Health,Leicestershire Partnership NHS Trust,25/07/19,Pathology Service,UHL Expenditure Contract,UHL NHS TRUST (RWE),L0228912,11434.99
Department of Health,Leicestershire Partnership NHS Trust,26/07/19,Payroll Deductions -Salary Sacrifice Cars Scheme,Balance Sheet Collection,TUSKER,18467,34795.72
Department of Health,Leicestershire Partnership NHS Trust,26/07/19,WIP Project Not in BS - Buildings excl Dwellings,Work in Progress,INTERSERVE CONSTRUCTION LTD,VEM55059,118090.43
Department of Health,Leicestershire Partnership NHS Trust,29/07/19,Crs_NHS_LT1y -Resus Inventory Supplied.,Balance Sheet Collection,SUPPLY CHAIN CO LTD,1010089834,36054.53
Department of Health,Leicestershire Partnership NHS Trust,30/07/19,Rent,"Syston Health Centre (New Building) (P127, LPT)",PHIP (5) LIMITED,LINV15713,37500.00
Department of Health,Leicestershire Partnership NHS Trust,30/07/19,NURSE - BAND 2 - AGENCY,Beechwood Ward,HCL NURSING,HNSI0000083,434.20
Department of Health,Leicestershire Partnership NHS Trust,30/07/19,NURSE - BAND 5 - AGENCY,Beechwood Ward,HCL NURSING,HNSI0000083,406.23
Department of Health,Leicestershire Partnership NHS Trust,30/07/19,NURSE - BAND 5 - AGENCY,City ICS,HCL NURSING,HNSI0000083,1710.01
Department of Health,Leicestershire Partnership NHS Trust,30/07/19,NURSE - BAND 5 - AGENCY,City Planned Care - East,HCL NURSING,HNSI0000083,15332.50
Department of Health,Leicestershire Partnership NHS Trust,30/07/19,NURSE - BAND 5 - AGENCY,City Planned Care - West,HCL NURSING,HNSI0000083,14259.89
Department of Health,Leicestershire Partnership NHS Trust,30/07/19,Nurse - Band 6 -Agency,City West CMHT MHSOP,HCL NURSING,HNSI0000083,641.93
Department of Health,Leicestershire Partnership NHS Trust,30/07/19,NURSE - BAND 2 - AGENCY,Clarendon Ward,HCL NURSING,HNSI0000083,1719.68
Department of Health,Leicestershire Partnership NHS Trust,30/07/19,NURSE - BAND 2 - AGENCY,Coalville Ward 2,HCL NURSING,HNSI0000083,828.66
Department of Health,Leicestershire Partnership NHS Trust,30/07/19,NURSE - BAND 5 - AGENCY,Coalville Ward 2,HCL NURSING,HNSI0000083,266.74
Department of Health,Leicestershire Partnership NHS Trust,30/07/19,NURSE - BAND 2 - AGENCY,Coleman Ward,HCL NURSING,HNSI0000083,182.01
Department of Health,Leicestershire Partnership NHS Trust,30/07/19,NURSE - BAND 5 - AGENCY,Dalgliesh Ward,HCL NURSING,HNSI0000083,820.37
Department of Health,Leicestershire Partnership NHS Trust,30/07/19,NURSE - BAND 5 - AGENCY,"East Planned Care - Oadby,Wigston & Harborough",HCL NURSING,HNSI0000083,1649.64
Department of Health,Leicestershire Partnership NHS Trust,30/07/19,NURSE - BAND 5 - AGENCY,Evening Service,HCL NURSING,HNSI0000083,695.13
Department of Health,Leicestershire Partnership NHS Trust,30/07/19,NURSE - BAND 2 - AGENCY,Fielding Palmer Nursing,HCL NURSING,HNSI0000083,106.77
Department of Health,Leicestershire Partnership NHS Trust,30/07/19,NURSE - BAND 5 - AGENCY,Fielding Palmer Nursing,HCL NURSING,HNSI0000083,2101.19
Department of Health,Leicestershire Partnership NHS Trust,30/07/19,NURSE - BAND 2 - AGENCY,Gwendolen Ward,HCL NURSING,HNSI0000083,233.07
Department of Health,Leicestershire Partnership NHS Trust,30/07/19,NURSE - BAND 2 - AGENCY,H&B Comm Hosp East Ward,HCL NURSING,HNSI0000083,2632.82
Department of Health,Leicestershire Partnership NHS Trust,30/07/19,NURSE - BAND 5 - AGENCY,H&B Comm Hosp East Ward,HCL NURSING,HNSI0000083,386.06
Department of Health,Leicestershire Partnership NHS Trust,30/07/19,NURSE - BAND 2 - AGENCY,H&B Comm Hosp North Ward,HCL NURSING,HNSI0000083,813.25
Department of Health,Leicestershire Partnership NHS Trust,30/07/19,NURSE - BAND 2 - AGENCY,Kirby Ward,HCL NURSING,HNSI0000083,113.85
Department of Health,Leicestershire Partnership NHS Trust,30/07/19,NURSE - BAND 5 - AGENCY,Lough Swithland Ward,HCL NURSING,HNSI0000083,386.06
Department of Health,Leicestershire Partnership NHS Trust,30/07/19,NURSE - BAND 5 - AGENCY,North West ICS,HCL NURSING,HNSI0000083,1450.29
Department of Health,Leicestershire Partnership NHS Trust,30/07/19,NURSE - BAND 2 - AGENCY,Rutland Ward Nursing,HCL NURSING,HNSI0000083,318.70
Department of Health,Leicestershire Partnership NHS Trust,30/07/19,NURSE - BAND 5 - AGENCY,Rutland Ward Nursing,HCL NURSING,HNSI0000083,329.81
Department of Health,Leicestershire Partnership NHS Trust,30/07/19,NURSE - BAND 5 - AGENCY,South East ICS,HCL NURSING,HNSI0000083,4724.94
Department of Health,Leicestershire Partnership NHS Trust,30/07/19,NURSE - BAND 2 - AGENCY,St Lukes Stroke Ward,HCL NURSING,HNSI0000083,227.53
Department of Health,Leicestershire Partnership NHS Trust,30/07/19,NURSE - BAND 5 - AGENCY,St Lukes Stroke Ward,HCL NURSING,HNSI0000083,582.52
Department of Health,Leicestershire Partnership NHS Trust,30/07/19,NURSE - BAND 2 - AGENCY,St Lukes Ward 3,HCL NURSING,HNSI0000083,1415.48
Department of Health,Leicestershire Partnership NHS Trust,30/07/19,NURSE - BAND 5 - AGENCY,St Lukes Ward 3,HCL NURSING,HNSI0000083,949.92
Department of Health,Leicestershire Partnership NHS Trust,30/07/19,NURSE - BAND 5 - AGENCY,West Planned Care  - Charnwood Hub,HCL NURSING,HNSI0000083,26.52
Department of Health,Leicestershire Partnership NHS Trust,30/07/19,Nurse - Band 6 -Agency,Adult City East CMHT - Merlyn Vaz,HCL NURSING,HNSI0000091,2205.50
Department of Health,Leicestershire Partnership NHS Trust,30/07/19,Nurse - Band 6 -Agency,Adult County Charnwood CMHT - Loughborough Base,HCL NURSING,HNSI0000091,855.90
Department of Health,Leicestershire Partnership NHS Trust,30/07/19,Nurse - Band 6 -Agency,Adult County North West Leicestershire CMHT,HCL NURSING,HNSI0000091,1013.31
Department of Health,Leicestershire Partnership NHS Trust,30/07/19,Nurse - Band 6 -Agency,Adult County West Leicestershire CMHT,HCL NURSING,HNSI0000091,2220.58
Department of Health,Leicestershire Partnership NHS Trust,30/07/19,NURSE - BAND 2 - AGENCY,Agnes Unit Management,HCL NURSING,HNSI0000091,3258.30
Department of Health,Leicestershire Partnership NHS Trust,30/07/19,NURSE - BAND 5 - AGENCY,Agnes Unit Management,HCL NURSING,HNSI0000091,674.37
Department of Health,Leicestershire Partnership NHS Trust,30/07/19,NURSE - BAND 5 - AGENCY,Ashby Ward (Bradgate Unit),HCL NURSING,HNSI0000091,339.96
Department of Health,Leicestershire Partnership NHS Trust,30/07/19,NURSE - BAND 2 - AGENCY,Aston Ward (Bradgate Unit),HCL NURSING,HNSI0000091,692.49
Department of Health,Leicestershire Partnership NHS Trust,30/07/19,NURSE - BAND 5 - AGENCY,Aston Ward (Bradgate Unit),HCL NURSING,HNSI0000091,669.77
Department of Health,Leicestershire Partnership NHS Trust,30/07/19,NURSE - BAND 2 - AGENCY,Beaumont Ward - Bradgate Unit,HCL NURSING,HNSI0000091,374.11
Department of Health,Leicestershire Partnership NHS Trust,30/07/19,NURSE - BAND 5 - AGENCY,Beaumont Ward - Bradgate Unit,HCL NURSING,HNSI0000091,989.44
Department of Health,Leicestershire Partnership NHS Trust,30/07/19,NURSE - BAND 2 - AGENCY,Belvoir Psychiatric Intensive Care Unit,HCL NURSING,HNSI0000091,4738.14
Department of Health,Leicestershire Partnership NHS Trust,30/07/19,NURSE - BAND 5 - AGENCY,Belvoir Psychiatric Intensive Care Unit,HCL NURSING,HNSI0000091,693.43
Department of Health,Leicestershire Partnership NHS Trust,30/07/19,NURSE - BAND 2 - AGENCY,Bosworth Ward - Bradgate Unit,HCL NURSING,HNSI0000091,211.93
Department of Health,Leicestershire Partnership NHS Trust,30/07/19,NURSE - BAND 5 - AGENCY,Bosworth Ward - Bradgate Unit,HCL NURSING,HNSI0000091,676.53
Department of Health,Leicestershire Partnership NHS Trust,30/07/19,NURSE - BAND 5 - AGENCY,Cedar (Willows),HCL NURSING,HNSI0000091,329.81
Department of Health,Leicestershire Partnership NHS Trust,30/07/19,Nurse - Band 6 -Agency,Crisis Resolution,HCL NURSING,HNSI0000091,1530.24
Department of Health,Leicestershire Partnership NHS Trust,30/07/19,NURSE - BAND 5 - AGENCY,Gillivers,HCL NURSING,HNSI0000091,274.96
Department of Health,Leicestershire Partnership NHS Trust,30/07/19,NURSE - BAND 2 - AGENCY,Griffin Ward (HPC),HCL NURSING,HNSI0000091,555.57
Department of Health,Leicestershire Partnership NHS Trust,30/07/19,NURSE - BAND 5 - AGENCY,Griffin Ward (HPC),HCL NURSING,HNSI0000091,3502.80
Department of Health,Leicestershire Partnership NHS Trust,30/07/19,NURSE - BAND 5 - AGENCY,Heather Ward,HCL NURSING,HNSI0000091,983.81
Department of Health,Leicestershire Partnership NHS Trust,30/07/19,Nurse - Band 6 -Agency,Leicestershire Psych-oncology Service,HCL NURSING,HNSI0000091,427.95
Department of Health,Leicestershire Partnership NHS Trust,30/07/19,Nurse - Band 6 -Agency,Mental Health Triage Team,HCL NURSING,HNSI0000091,3923.90
Department of Health,Leicestershire Partnership NHS Trust,30/07/19,NURSE - BAND 2 - AGENCY,Mill Lodge,HCL NURSING,HNSI0000091,1368.23
Department of Health,Leicestershire Partnership NHS Trust,30/07/19,NURSE - BAND 5 - AGENCY,Mill Lodge,HCL NURSING,HNSI0000091,1401.84
Department of Health,Leicestershire Partnership NHS Trust,30/07/19,NURSE - BAND 2 - AGENCY,Place Of Safety Assessment Unit,HCL NURSING,HNSI0000091,522.88
Department of Health,Leicestershire Partnership NHS Trust,30/07/19,NURSE - BAND 2 - AGENCY,Sycamore (Willows),HCL NURSING,HNSI0000091,374.11
Department of Health,Leicestershire Partnership NHS Trust,30/07/19,NURSE - BAND 5 - AGENCY,Sycamore (Willows),HCL NURSING,HNSI0000091,329.81
Department of Health,Leicestershire Partnership NHS Trust,30/07/19,NURSE - BAND 2 - AGENCY,Thornton Ward - Bradgate Unit,HCL NURSING,HNSI0000091,168.41
Department of Health,Leicestershire Partnership NHS Trust,30/07/19,NURSE - BAND 5 - AGENCY,Thornton Ward - Bradgate Unit,HCL NURSING,HNSI0000091,596.56
Department of Health,Leicestershire Partnership NHS Trust,30/07/19,NURSE - BAND 2 - AGENCY,Watermead Ward (Bradgate Unit),HCL NURSING,HNSI0000091,578.93
Department of Health,Leicestershire Partnership NHS Trust,30/07/19,NURSE - BAND 5 - AGENCY,Watermead Ward (Bradgate Unit),HCL NURSING,HNSI0000091,756.51
